fUST/lending_fUST_20250511
["ID","MTS","AMOUNT","RATE_DAILY","PERIOD"]
[360586487,1746897033566,-400.0,8.219e-05,2]
[360586488,1746897033582,-400.0,8.219e-05,2]
[360586489,1746897033591,-510.41,8.219e-05,2]
[360586490,1746897033601,-300.0,8.219e-05,2]
[360586491,1746897033610,-400.0,8.219e-05,2]
[360586492,1746897033620,-400.0,8.219e-05,2]
[360586493,1746897033630,-400.0,8.219e-05,2]
[360586494,1746897033639,-400.0,8.219e-05,2]
[360586495,1746897033650,-200.0,8.219e-05,2]
[360586496,1746897033659,-400.0,8.219e-05,2]
[360586497,1746897033669,-400.0,8.219e-05,2]
[360586498,1746897033680,-400.0,8.219e-05,2]
[360586499,1746897033689,-1258.88,8.219e-05,2]
[360586500,1746897033699,-400.0,8.219e-05,2]
[360586501,1746897033709,-400.0,8.219e-05,2]
[360586502,1746897033719,-844.66,8.219e-05,2]
[360586503,1746897033729,-400.0,8.219e-05,2]
[360586504,1746897033739,-400.0,8.219e-05,2]
[360586505,1746897033749,-802.9,8.219e-05,2]
[360586506,1746897033760,-400.0,8.219e-05,2]
[360586507,1746897033770,-400.0,8.219e-05,2]
[360586508,1746897033780,-400.0,8.219e-05,2]
[360586509,1746897033790,-400.0,8.219e-05,2]
[360586510,1746897033803,-400.0,8.219e-05,2]
[360586511,1746897033813,-724.67,8.219e-05,2]
[360586512,1746897033823,-400.0,8.219e-05,2]
[360586513,1746897033835,-400.0,8.219e-05,2]
[360586514,1746897033846,-500.0,8.219e-05,2]
[360586515,1746897033855,-400.0,8.219e-05,2]
[360586516,1746897033866,-400.0,8.219e-05,2]
[360586517,1746897033876,-151.0,8.219e-05,2]
[360586518,1746897033886,-500.0,8.219e-05,2]
[360586519,1746897033896,-500.0,8.219e-05,2]
[360586520,1746897033906,-400.0,8.219e-05,2]
[360586521,1746897033916,-500.0,8.219e-05,2]
[360586522,1746897033927,-400.0,8.219e-05,2]
[360586523,1746897033937,-151.0,8.219e-05,2]
[360586524,1746897033947,-151.0,8.219e-05,2]
[360586525,1746897033956,-400.0,8.219e-05,2]
[360586526,1746897033967,-400.0,8.219e-05,2]
[360586527,1746897033977,-500.0,8.219e-05,2]
[360586528,1746897033987,-400.0,8.219e-05,2]
[360586529,1746897033997,-400.0,8.219e-05,2]
[360586530,1746897034008,-500.0,8.219e-05,2]
[360586531,1746897034017,-400.0,8.219e-05,2]
[360586532,1746897034027,-400.0,8.219e-05,2]
[360586533,1746897034036,-400.0,8.219e-05,2]
[360586534,1746897034047,-611.9,8.219e-05,2]
[360586535,1746897034056,-400.0,8.219e-05,2]
[360586536,1746897034066,-400.0,8.219e-05,2]
[360586537,1746897034077,-151.0,8.219e-05,2]
[360586538,1746897034094,-400.0,8.219e-05,2]
[360586539,1746897034104,-400.0,8.219e-05,2]
[360586540,1746897034115,-400.0,8.219e-05,2]
[360586541,1746897034126,-400.0,8.219e-05,2]
[360586542,1746897034136,-517.19,8.219e-05,2]
[360586543,1746897034146,-400.0,8.219e-05,2]
[360586544,1746897034158,-315.09789003,8.219e-05,2]
[360586545,1746897034169,-400.0,8.219e-05,2]
[360586546,1746897034180,-400.0,8.219e-05,2]
[360586547,1746897034191,-400.0,8.219e-05,2]
[360586548,1746897034202,-400.0,8.219e-05,2]
[360586549,1746897034213,-401.37070806,8.219e-05,2]
[360586550,1746897034223,-451.3,8.219e-05,2]
[360586551,1746897034234,-907.24,8.219e-05,2]
[360586552,1746897034244,-518.15,8.219e-05,2]
[360586553,1746897034255,-400.0,8.219e-05,2]
[360586554,1746897034266,-416.91,8.219e-05,2]
[360586555,1746897034277,-400.0,8.219e-05,2]
[360586556,1746897034287,-400.0,8.219e-05,2]
[360586557,1746897034298,-400.0,8.219e-05,2]
[360586558,1746897034308,-793.02,8.219e-05,2]
[360586559,1746897034319,-400.0,8.219e-05,2]
[360586560,1746897034329,-400.0,8.219e-05,2]
[360586561,1746897034343,-400.0,8.219e-05,2]
[360586562,1746897034353,-400.0,8.219e-05,2]
[360586563,1746897034363,-503.65,8.219e-05,2]
[360586564,1746897034374,-400.0,8.219e-05,2]
[360586565,1746897034385,-400.0,8.219e-05,2]
[360586566,1746897034396,-400.0,8.219e-05,2]
[360586567,1746897034406,-470.18,8.219e-05,2]
[360586568,1746897034417,-200.0,8.219e-05,2]
[360586569,1746897034426,-500.0,8.219e-05,2]
[360586570,1746897034436,-203.69753193,8.219e-05,2]
[360586571,1746897034447,-413.5222989,8.219e-05,2]
[360586572,1746897034457,-400.0,8.219e-05,2]
[360586573,1746897034467,-400.0,8.219e-05,2]
[360586574,1746897034478,-500.0,8.219e-05,2]
[360586575,1746897034488,-400.0,8.219e-05,2]
[360586576,1746897034498,-400.0,8.219e-05,2]
[360586577,1746897034508,-636.92,8.219e-05,2]
[360586578,1746897034518,-400.0,8.219e-05,2]
[360586579,1746897034527,-578.46,8.219e-05,2]
[360586580,1746897034537,-441.57817237,8.219e-05,2]
[360586581,1746897034547,-400.0,8.219e-05,2]
[360586582,1746897034556,-514.62,8.219e-05,2]
[360586583,1746897034568,-400.0,8.219e-05,2]
[360586584,1746897034579,-400.0,8.219e-05,2]
[360586585,1746897034591,-400.0,8.219e-05,2]
[360586586,1746897034601,-925.4,8.219e-05,2]
[360586587,1746897034611,-400.0,8.219e-05,2]
[360586588,1746897034621,-641.11,8.219e-05,2]
[360586589,1746897034631,-200.0,8.219e-05,2]
[360586590,1746897034641,-400.0,8.219e-05,2]
[360586591,1746897034651,-400.0,8.219e-05,2]
[360586592,1746897034662,-400.0,8.219e-05,2]
[360586593,1746897034672,-400.0,8.219e-05,2]
[360586594,1746897034683,-400.0,8.219e-05,2]
[360586595,1746897034693,-1024.31,8.219e-05,2]
[360586596,1746897034703,-400.0,8.219e-05,2]
[360586597,1746897034712,-1144.96,8.219e-05,2]
[360586598,1746897034722,-452.28,8.219e-05,2]
[360586599,1746897034741,-400.0,8.219e-05,2]
[360586600,1746897034753,-400.0,8.219e-05,2]
[360586601,1746897034763,-400.0,8.219e-05,2]
[360586602,1746897034775,-500.0,8.219e-05,2]
[360586603,1746897034786,-552.96,8.219e-05,2]
[360586604,1746897034796,-403.97015602,8.219e-05,2]
[360586605,1746897034806,-513.64,8.219e-05,2]
[360586606,1746897034816,-400.0,8.219e-05,2]
[360586607,1746897034826,-400.0,8.219e-05,2]
[360586608,1746897034839,-400.0,8.219e-05,2]
[360586609,1746897034851,-400.0,8.219e-05,2]
[360586610,1746897034861,-400.0,8.219e-05,2]
[360586611,1746897034871,-400.0,8.219e-05,2]
[360586612,1746897034882,-561.76,8.219e-05,2]
[360586613,1746897034892,-400.0,8.219e-05,2]
[360586614,1746897034902,-681.28,8.219e-05,2]
[360586615,1746897034912,-400.0,8.219e-05,2]
[360586616,1746897034923,-1017.28,8.219e-05,2]
[360586617,1746897034933,-519.67023278,8.219e-05,2]
[360586618,1746897034943,-400.0,8.219e-05,2]
[360586619,1746897034954,-500.0,8.219e-05,2]
[360586620,1746897034965,-445.56,8.219e-05,2]
[360586621,1746897034975,-151.53128022,8.219e-05,2]
[360586622,1746897034985,-500.0,8.219e-05,2]
[360586623,1746897034995,-400.0,8.219e-05,2]
[360586624,1746897035005,-400.0,8.219e-05,2]
[360586625,1746897035015,-252.25635406,8.219e-05,2]
[360586626,1746897035026,-500.0,8.219e-05,2]
[360586627,1746897035038,-1903.33,8.219e-05,2]
[360586628,1746897035048,-151.0,8.219e-05,2]
[360586629,1746897035058,-400.0,8.219e-05,2]
[360586630,1746897035068,-459.68,8.219e-05,2]
[360586631,1746897035078,-400.0,8.219e-05,2]
[360586632,1746897035091,-400.0,8.219e-05,2]
[360586633,1746897035101,-500.0,8.219e-05,2]
[360586634,1746897035111,-1311.34,8.219e-05,2]
[360586635,1746897035121,-414.47804581,8.219e-05,2]
[360586636,1746897035131,-500.0,8.219e-05,2]
[360586637,1746897035141,-557.96,8.219e-05,2]
[360586638,1746897035151,-674.63,8.219e-05,2]
[360586639,1746897035160,-153.23139584,8.219e-05,2]
[360586640,1746897035171,-400.0,8.219e-05,2]
[360586641,1746897035181,-539.13,8.219e-05,2]
[360586642,1746897035190,-962.38,8.219e-05,2]
[360586643,1746897035200,-448.94,8.219e-05,2]
[360586644,1746897035210,-400.0,8.219e-05,2]
[360586645,1746897035220,-535.1135839,8.219e-05,2]
[360586646,1746897035230,-608.37,8.219e-05,2]
[360586647,1746897035240,-400.0,8.219e-05,2]
[360586648,1746897035250,-2826.75,8.219e-05,2]
[360586649,1746897035260,-1541.46,8.219e-05,2]
[360586650,1746897035270,-640.66,8.219e-05,2]
[360586651,1746897035282,-400.0,8.219e-05,2]
[360586652,1746897035293,-206.34627221,8.219e-05,2]
[360586653,1746897035303,-400.0,8.219e-05,2]
[360586654,1746897035313,-400.0,8.219e-05,2]
[360586655,1746897035323,-1297.57,8.219e-05,2]
[360586656,1746897035333,-400.0,8.219e-05,2]
[360586657,1746897035344,-400.0,8.219e-05,2]
[360586658,1746897035354,-282.73107454,8.219e-05,2]
[360586659,1746897035363,-429.59,8.219e-05,2]
[360586660,1746897035373,-210.8562482,8.219e-05,2]
[360586661,1746897035382,-400.0,8.219e-05,2]
[360586662,1746897035393,-2480.9,8.219e-05,2]
[360586663,1746897035403,-400.0,8.219e-05,2]
[360586664,1746897035413,-1168.23,8.219e-05,2]
[360586665,1746897035422,-181.8522785,8.219e-05,2]
[360586666,1746897035432,-601.68,8.219e-05,2]
[360586667,1746897035442,-400.0,8.219e-05,2]
[360586668,1746897035452,-400.0,8.219e-05,2]
[360586669,1746897035462,-400.0,8.219e-05,2]
[360586670,1746897035472,-400.0,8.219e-05,2]
[360586671,1746897035482,-1496.8,8.219e-05,2]
[360586672,1746897035492,-320.0,8.219e-05,2]
[360586673,1746897035502,-592.16,8.219e-05,2]
[360586674,1746897035512,-400.0,8.219e-05,2]
[360586675,1746897035522,-400.0,8.219e-05,2]
[360586676,1746897035531,-374.0,8.219e-05,2]
[360586677,1746897035541,-400.0,8.219e-05,2]
[360586678,1746897035550,-374.0,8.219e-05,2]
[360586679,1746897035560,-374.0,8.219e-05,2]
[360586680,1746897035571,-374.0,8.219e-05,2]
[360586681,1746897035585,-975.14,8.219e-05,2]
[360586682,1746897035594,-374.0,8.219e-05,2]
[360586683,1746897035604,-374.0,8.219e-05,2]
[360586684,1746897035614,-374.0,8.219e-05,2]
[360586685,1746897035624,-374.0,8.219e-05,2]
[360586686,1746897035634,-374.0,8.219e-05,2]
[360586687,1746897035643,-1017.96,8.219e-05,2]
[360586688,1746897035654,-374.0,8.219e-05,2]
[360586689,1746897035664,-374.0,8.219e-05,2]
[360586690,1746897035674,-239.19086453,8.219e-05,2]
[360586691,1746897035684,-374.0,8.219e-05,2]
[360586692,1746897035693,-374.0,8.219e-05,2]
[360586693,1746897035703,-374.0,8.219e-05,2]
[360586694,1746897035714,-374.0,8.219e-05,2]
[360586695,1746897035723,-2245.22,8.219e-05,2]
[360586696,1746897035733,-374.0,8.219e-05,2]
[360586697,1746897035743,-374.0,8.219e-05,2]
[360586698,1746897035752,-374.0,8.219e-05,2]
[360586699,1746897035762,-542.47887358,8.219e-05,2]
[360586700,1746897035772,-374.0,8.219e-05,2]
[360586701,1746897035782,-374.0,8.219e-05,2]
[360586702,1746897035792,-400.0,8.219e-05,2]
[360586703,1746897035801,-374.0,8.219e-05,2]
[360586704,1746897035815,-500.0,8.219e-05,2]
[360586705,1746897035825,-374.0,8.219e-05,2]
[360586706,1746897035836,-400.0,8.219e-05,2]
[360586707,1746897035845,-374.0,8.219e-05,2]
[360586708,1746897035855,-374.0,8.219e-05,2]
[360586709,1746897035865,-1182.81,8.219e-05,2]
[360586710,1746897035875,-400.0,8.219e-05,2]
[360586711,1746897035885,-1059.64,8.219e-05,2]
[360586712,1746897035895,-1634.51,8.219e-05,2]
[360586713,1746897035904,-902.38,8.219e-05,2]
[360586714,1746897035915,-374.0,8.219e-05,2]
[360586715,1746897035925,-374.0,8.219e-05,2]
[360586716,1746897035935,-374.0,8.219e-05,2]
[360586717,1746897035944,-374.0,8.219e-05,2]
[360586718,1746897035954,-374.0,8.219e-05,2]
[360586719,1746897035964,-182.86521841,8.219e-05,2]
[360586720,1746897035974,-374.0,8.219e-05,2]
[360586721,1746897035984,-374.0,8.219e-05,2]
[360586722,1746897035993,-374.0,8.219e-05,2]
[360586723,1746897036003,-374.0,8.219e-05,2]
[360586724,1746897036013,-678.76,8.219e-05,2]
[360586725,1746897036023,-374.0,8.219e-05,2]
[360586726,1746897036032,-504.22,8.219e-05,2]
[360586727,1746897036042,-345.63135838,8.219e-05,2]
[360586728,1746897036052,-400.0,8.219e-05,2]
[360586729,1746897036062,-400.0,8.219e-05,2]
[360586730,1746897036071,-400.0,8.219e-05,2]
[360586731,1746897036081,-400.0,8.219e-05,2]
[360586732,1746897036092,-453.29,8.219e-05,2]
[360586733,1746897036102,-400.0,8.219e-05,2]
[360586734,1746897036112,-1695.11,8.219e-05,2]
[360586735,1746897036122,-400.0,8.219e-05,2]
[360586736,1746897036132,-400.0,8.219e-05,2]
[360586737,1746897036142,-443.66,8.219e-05,2]
[360586738,1746897036151,-400.0,8.219e-05,2]
[360586739,1746897036161,-400.0,8.219e-05,2]
[360586740,1746897036170,-2451.43,8.219e-05,2]
[360586741,1746897036180,-400.0,8.219e-05,2]
[360586742,1746897036189,-538.13,8.219e-05,2]
[360586743,1746897036199,-400.0,8.219e-05,2]
[360586744,1746897036209,-400.0,8.219e-05,2]
[360586745,1746897036219,-400.0,8.219e-05,2]
[360586746,1746897036230,-400.0,8.219e-05,2]
[360586747,1746897036242,-400.0,8.219e-05,2]
[360586748,1746897036253,-645.73,8.219e-05,2]
[360586749,1746897036263,-1569.56,8.219e-05,2]
[360586750,1746897036273,-400.0,8.219e-05,2]
[360586751,1746897036282,-400.0,8.219e-05,2]
[360586752,1746897036292,-400.0,8.219e-05,2]
[360586753,1746897036302,-400.0,8.219e-05,2]
[360586754,1746897036312,-1541.4,8.219e-05,2]
[360586755,1746897036322,-400.0,8.219e-05,2]
[360586756,1746897036332,-400.0,8.219e-05,2]
[360586757,1746897036343,-400.0,8.219e-05,2]
[360586758,1746897036352,-400.0,8.219e-05,2]
[360586759,1746897036363,-770.53,8.219e-05,2]
[360586760,1746897036373,-955.61,8.219e-05,2]
[360586761,1746897036383,-1666.83,8.219e-05,2]
[360586762,1746897036393,-400.0,8.219e-05,2]
[360586763,1746897036404,-461.42,8.219e-05,2]
[360586764,1746897036413,-400.0,8.219e-05,2]
[360586765,1746897036423,-400.0,8.219e-05,2]
[360586766,1746897036433,-400.0,8.219e-05,2]
[360586767,1746897036443,-691.08,8.219e-05,2]
[360586768,1746897036454,-400.0,8.219e-05,2]
[360586769,1746897036464,-400.0,8.219e-05,2]
[360586770,1746897036474,-443.44,8.219e-05,2]
[360586771,1746897036484,-4956.86,8.219e-05,2]
[360586772,1746897036494,-3201.2,8.219e-05,2]
[360586773,1746897036504,-654.51,8.219e-05,2]
[360586774,1746897036514,-2969.36,8.219e-05,2]
[360586775,1746897036524,-5650.11,8.219e-05,2]
[360586776,1746897036533,-752.78,8.219e-05,2]
[360586777,1746897036542,-3407.65,8.219e-05,2]
[360586778,1746897036552,-400.0,8.219e-05,2]
[360586779,1746897036561,-400.0,8.219e-05,2]
[360586780,1746897036572,-151.0,8.219e-05,2]
[360586781,1746897036588,-400.0,8.219e-05,2]
[360586782,1746897036599,-151.0,8.219e-05,2]
[360586783,1746897036608,-2643.67,8.219e-05,2]
[360586784,1746897036618,-500.0,8.219e-05,2]
[360586785,1746897036627,-803.11,8.219e-05,2]
[360586786,1746897036637,-400.0,8.219e-05,2]
[360586787,1746897036646,-400.0,8.219e-05,2]
[360586788,1746897036657,-1218.74,8.219e-05,2]
[360586789,1746897036667,-400.0,8.219e-05,2]
[360586790,1746897036677,-400.0,8.219e-05,2]
[360586791,1746897036688,-400.0,8.219e-05,2]
[360586792,1746897036697,-400.0,8.219e-05,2]
[360586793,1746897036706,-400.0,8.219e-05,2]
[360586794,1746897036716,-550.69,8.219e-05,2]
[360586795,1746897036726,-3271.07,8.219e-05,2]
[360586796,1746897036736,-612.13,8.219e-05,2]
[360586797,1746897036747,-1307.08,8.219e-05,2]
[360586798,1746897036757,-853.56,8.219e-05,2]
[360586799,1746897036769,-400.0,8.219e-05,2]
[360586800,1746897036780,-400.0,8.219e-05,2]
[360586801,1746897036790,-1529.09,8.219e-05,2]
[360586802,1746897036801,-400.0,8.219e-05,2]
[360586803,1746897036811,-601.26,8.219e-05,2]
[360586804,1746897036822,-400.0,8.219e-05,2]
[360586805,1746897036832,-400.0,8.219e-05,2]
[360586806,1746897036846,-400.0,8.219e-05,2]
[360586807,1746897036856,-400.0,8.219e-05,2]
[360586808,1746897036866,-2318.26,8.219e-05,2]
[360586809,1746897036875,-400.89,8.219e-05,2]
[360586810,1746897036885,-4498.72,8.219e-05,2]
[360586811,1746897036895,-400.0,8.219e-05,2]
[360586812,1746897036905,-501.77215838,8.219e-05,2]
[360586813,1746897036915,-400.0,8.219e-05,2]
[360586814,1746897036924,-1528.99,8.219e-05,2]
[360586815,1746897036934,-419.63,8.219e-05,2]
[360586816,1746897036944,-400.0,8.219e-05,2]
[360586817,1746897036954,-952.53,8.219e-05,2]
[360586818,1746897036963,-2917.78,8.219e-05,2]
[360586819,1746897036973,-861.44,8.219e-05,2]
[360586820,1746897036983,-3938.8,8.219e-05,2]
[360586821,1746897036993,-400.0,8.219e-05,2]
[360586822,1746897037002,-400.0,8.219e-05,2]
[360586823,1746897037012,-400.0,8.219e-05,2]
[360586824,1746897037022,-8138.87,8.219e-05,2]
[360586825,1746897037032,-400.0,8.219e-05,2]
[360586826,1746897037042,-1235.93,8.219e-05,2]
[360586827,1746897037052,-400.0,8.219e-05,2]
[360586828,1746897037061,-431.0,8.219e-05,2]
[360586829,1746897037071,-1053.47,8.219e-05,2]
[360586830,1746897037081,-400.0,8.219e-05,2]
[360586831,1746897037094,-400.0,8.219e-05,2]
[360586832,1746897037103,-560.78,8.219e-05,2]
[360586833,1746897037112,-400.0,8.219e-05,2]
[360586834,1746897037122,-400.0,8.219e-05,2]
[360586835,1746897037132,-400.0,8.219e-05,2]
[360586836,1746897037142,-400.0,8.219e-05,2]
[360586838,1746897037342,-1205.54,8.219e-05,2]
[360586839,1746897037353,-1136.85,8.219e-05,2]
[360586841,1746897037362,-400.70991496,8.219e-05,2]
[360586843,1746897037372,-400.0,8.219e-05,2]
[360586845,1746897037381,-400.0,8.219e-05,2]
[360586846,1746897037391,-500.0,8.219e-05,2]
[360586847,1746897037400,-400.0,8.219e-05,2]
[360586848,1746897037409,-262.05399299,8.219e-05,2]
[360586849,1746897037419,-205.56470883,8.219e-05,2]
[360586850,1746897037428,-400.0,8.219e-05,2]
[360586851,1746897037438,-151.0,8.219e-05,2]
[360586852,1746897037448,-400.0,8.219e-05,2]
[360586853,1746897037457,-400.0,8.219e-05,2]
[360586854,1746897037469,-500.0,8.219e-05,2]
[360586855,1746897037478,-409.33,8.219e-05,2]
[360586856,1746897037487,-500.0,8.219e-05,2]
[360586857,1746897037497,-400.0,8.219e-05,2]
[360586858,1746897037506,-238.90136676,8.219e-05,2]
[360586859,1746897037516,-500.0,8.219e-05,2]
[360586860,1746897037526,-400.0,8.219e-05,2]
[360586861,1746897037537,-400.0,8.219e-05,2]
[360586862,1746897037546,-500.0,8.219e-05,2]
[360586863,1746897037556,-826.98,8.219e-05,2]
[360586864,1746897037566,-400.0,8.219e-05,2]
[360586865,1746897037577,-400.0,8.219e-05,2]
[360586866,1746897037588,-1949.55,8.219e-05,2]
[360586867,1746897037598,-169.75830744,8.219e-05,2]
[360586868,1746897037608,-151.0,8.219e-05,2]
[360586869,1746897037617,-151.0,8.219e-05,2]
[360586870,1746897037628,-400.0,8.219e-05,2]
[360586871,1746897037638,-2738.66,8.219e-05,2]
[360586872,1746897037647,-626.28,8.219e-05,2]
[360586873,1746897037657,-151.0,8.219e-05,2]
[360586874,1746897037666,-975.07,8.219e-05,2]
[360586875,1746897037675,-151.0,8.219e-05,2]
[360586876,1746897037685,-400.0,8.219e-05,2]
[360586877,1746897037694,-365.34957918,8.219e-05,2]
[360586878,1746897037704,-1911.6,8.219e-05,2]
[360586879,1746897037713,-400.0,8.219e-05,2]
[360586880,1746897037722,-400.0,8.219e-05,2]
[360586881,1746897037731,-400.0,8.219e-05,2]
[360586882,1746897037741,-2579.39,8.219e-05,2]
[360586883,1746897037751,-5285.93,8.219e-05,2]
[360586884,1746897037760,-2087.43,8.219e-05,2]
[360586885,1746897037769,-1087.42,8.219e-05,2]
[360586886,1746897037779,-9975.13,8.219e-05,2]
[360586887,1746897037788,-400.0,8.219e-05,2]
[360586888,1746897037797,-956.03,8.219e-05,2]
[360586889,1746897037807,-1135.09,8.219e-05,2]
[360586890,1746897037816,-400.0,8.219e-05,2]
[360586891,1746897037825,-1940.81,8.219e-05,2]
[360586892,1746897037836,-1638.81,8.219e-05,2]
[360586893,1746897037845,-351.67544731,8.219e-05,2]
[360586894,1746897037854,-1175.07,8.219e-05,2]
[360586895,1746897037864,-907.09,8.219e-05,2]
[360586896,1746897037873,-400.0,8.219e-05,2]
[360586897,1746897037882,-968.64,8.219e-05,2]
[360586898,1746897037892,-400.0,8.219e-05,2]
[360586899,1746897037902,-472.85,8.219e-05,2]
[360586900,1746897037911,-4370.62,8.219e-05,2]
[360586901,1746897037922,-400.0,8.219e-05,2]
[360586902,1746897037931,-2596.66,8.219e-05,2]
[360586903,1746897037941,-400.0,8.219e-05,2]
[360586904,1746897037951,-400.0,8.219e-05,2]
[360586905,1746897037960,-400.0,8.219e-05,2]
[360586906,1746897037969,-400.0,8.219e-05,2]
[360586907,1746897037978,-500.0,8.219e-05,2]
[360586908,1746897037987,-1201.51,8.219e-05,2]
[360586909,1746897037997,-400.0,8.219e-05,2]
[360586910,1746897038007,-510.38876998,8.219e-05,2]
[360586911,1746897038016,-500.0,8.219e-05,2]
[360586912,1746897038026,-151.0,8.219e-05,2]
[360586913,1746897038035,-400.0,8.219e-05,2]
[360586914,1746897038045,-400.0,8.219e-05,2]
[360586915,1746897038055,-624.06,8.219e-05,2]
[360586916,1746897038064,-555.97,8.219e-05,2]
[360586917,1746897038073,-4402.41,8.219e-05,2]
[360586918,1746897038082,-972.56,8.219e-05,2]
[360586919,1746897038093,-1474.66,8.219e-05,2]
[360586920,1746897038102,-400.0,8.219e-05,2]
[360586921,1746897038112,-151.0,8.219e-05,2]
[360586922,1746897038122,-1533.75,8.219e-05,2]
[360586923,1746897038132,-151.0,8.219e-05,2]
[360586924,1746897038142,-400.0,8.219e-05,2]
[360586925,1746897038151,-500.0,8.219e-05,2]
[360586926,1746897038161,-423.97343875,8.219e-05,2]
[360586927,1746897038170,-400.0,8.219e-05,2]
[360586928,1746897038179,-9159.98,8.219e-05,2]
[360586929,1746897038188,-402.34286284,8.219e-05,2]
[360586930,1746897038197,-400.0,8.219e-05,2]
[360586931,1746897038206,-2352.32,8.219e-05,2]
[360586932,1746897038215,-400.0,8.219e-05,2]
[360586933,1746897038224,-503.62485783,8.219e-05,2]
[360586934,1746897038234,-400.0,8.219e-05,2]
[360586935,1746897038243,-400.0,8.219e-05,2]
[360586936,1746897038253,-1097.56,8.219e-05,2]
[360586937,1746897038263,-400.0,8.219e-05,2]
[360586938,1746897038272,-449.56,8.219e-05,2]
[360586939,1746897038281,-2516.59,8.219e-05,2]
[360586940,1746897038291,-400.0,8.219e-05,2]
[360586941,1746897038300,-1081.76,8.219e-05,2]
[360586942,1746897038309,-8322.19,8.219e-05,2]
[360586943,1746897038318,-5961.16,8.219e-05,2]
[360586944,1746897038327,-576.77,8.219e-05,2]
[360586945,1746897038337,-523.74,8.219e-05,2]
[360586946,1746897038346,-400.0,8.219e-05,2]
[360586947,1746897038355,-400.0,8.219e-05,2]
[360586948,1746897038364,-989.24,8.219e-05,2]
[360586949,1746897038374,-589.37,8.219e-05,2]
[360586950,1746897038383,-2803.34,8.219e-05,2]
[360586951,1746897038392,-400.0,8.219e-05,2]
[360586952,1746897038402,-1276.56,8.219e-05,2]
[360586953,1746897038411,-400.0,8.219e-05,2]
[360586954,1746897038422,-400.0,8.219e-05,2]
[360586955,1746897038433,-1000.0,8.219e-05,2]
[360586956,1746897038443,-400.0,8.219e-05,2]
[360586957,1746897038453,-400.0,8.219e-05,2]
[360586958,1746897038462,-400.0,8.219e-05,2]
[360586959,1746897038472,-1113.15,8.219e-05,2]
[360586960,1746897038481,-400.0,8.219e-05,2]
[360586961,1746897038490,-2688.77,8.219e-05,2]
[360586962,1746897038499,-1190.97,8.219e-05,2]
[360586963,1746897038509,-400.0,8.219e-05,2]
[360586964,1746897038518,-1944.68,8.219e-05,2]
[360586965,1746897038528,-400.0,8.219e-05,2]
[360586966,1746897038538,-400.0,8.219e-05,2]
[360586967,1746897038547,-1043.53,8.219e-05,2]
[360586968,1746897038557,-400.0,8.219e-05,2]
[360586969,1746897038568,-400.0,8.219e-05,2]
[360586970,1746897038577,-400.0,8.219e-05,2]
[360586971,1746897038588,-451.59399957,8.219e-05,2]
[360586972,1746897038597,-389.70227789,8.219e-05,2]
[360586973,1746897038606,-10144.6,8.219e-05,2]
[360586974,1746897038617,-1309.54,8.219e-05,2]
[360586975,1746897038627,-845.67,8.219e-05,2]
[360586976,1746897038637,-400.0,8.219e-05,2]
[360586977,1746897038647,-400.0,8.219e-05,2]
[360586978,1746897038657,-484.86,8.219e-05,2]
[360586979,1746897038666,-2619.55,8.219e-05,2]
[360586980,1746897038675,-400.0,8.219e-05,2]
[360586981,1746897038685,-400.0,8.219e-05,2]
[360586982,1746897038695,-523.05379956,8.219e-05,2]
[360586983,1746897038705,-1735.13,8.219e-05,2]
[360586984,1746897038713,-400.0,8.219e-05,2]
[360586985,1746897038723,-400.0,8.219e-05,2]
[360586986,1746897038732,-400.0,8.219e-05,2]
[360586987,1746897038741,-400.0,8.219e-05,2]
[360586988,1746897038750,-457.46,8.219e-05,2]
[360586989,1746897038760,-413.15,8.219e-05,2]
[360586990,1746897038770,-3124.95,8.219e-05,2]